[Event "Titled Tuesday Blitz October 25 Late 2022"]
[White "Gonzalez, Francisco Silva"]
[Black "Clawitter, Craig"]
[WhiteFideId "1512285"]
[BlackFideId "2023105"]
[WhiteElo "2159"]
[BlackElo "2257"]
[Result "1-0"]
[Round "07"]
[TimeControl "180+1"]
[Date "2022.10.26"]
[WhiteClock "0:00:23"]
[BlackClock "0:00:02"]

1. d4 {[%clk 0:03:00]}  e6 {[%clk 0:03:00]} 2. c4 {[%clk 0:03:00]}  Nf6 {[%clk 0:03:00]} 3. Nc3 {[%clk 0:02:59]}  d5 {[%clk 0:03:01]} 4. Bg5 {[%clk 0:02:58]}  dxc4 {[%clk 0:03:00]} 5. e3 {[%clk 0:02:58]}  c5 {[%clk 0:02:59]} 6. Bxc4 {[%clk 0:02:58]}  cxd4 {[%clk 0:02:58]} 7. exd4 {[%clk 0:02:58]}  Be7 {[%clk 0:02:55]} 8. Nf3 {[%clk 0:02:58]}  Nc6 {[%clk 0:02:55]} 9. O-O {[%clk 0:02:58]}  O-O {[%clk 0:02:55]} 10. a3 {[%clk 0:02:57]}  b6 {[%clk 0:02:52]} 11. Re1 {[%clk 0:02:57]}  Bb7 {[%clk 0:02:49]} 12. Ba2 {[%clk 0:02:55]}  Rc8 {[%clk 0:02:43]} 13. d5 {[%clk 0:02:50]}  Nxd5 {[%clk 0:02:42]} 14. Nxd5 {[%clk 0:02:37]}  Bxg5 {[%clk 0:02:36]} 15. Nxg5 {[%clk 0:02:29]}  Qxg5 {[%clk 0:02:31]} 16. Ne3 {[%clk 0:02:12]}  Rfd8 {[%clk 0:02:26]} 17. Qa4 {[%clk 0:02:08]}  Rd2 {[%clk 0:02:12]} 18. Rab1 {[%clk 0:01:51]}  Qf6 {[%clk 0:01:53]} 19. Ng4 {[%clk 0:01:43]}  Qd4 {[%clk 0:01:44]} 20. Re4 {[%clk 0:01:23]}  Qxa4 {[%clk 0:01:05]} 21. Rxa4 {[%clk 0:01:23]}  a6 {[%clk 0:01:05]} 22. h3 {[%clk 0:01:22]}  b5 {[%clk 0:01:03]} 23. Rf4 {[%clk 0:01:21]}  Nd4 {[%clk 0:00:56]} 24. Kh2 {[%clk 0:01:11]}  h5 {[%clk 0:00:44]} 25. Ne5 {[%clk 0:01:04]}  f6 {[%clk 0:00:41]} 26. Rxd4 {[%clk 0:00:59]}  Rxd4 {[%clk 0:00:41]} 27. Bxe6+ {[%clk 0:00:58]}  Kf8 {[%clk 0:00:38]} 28. Ng6+ {[%clk 0:00:56]}  Ke8 {[%clk 0:00:33]} 29. Bxc8 {[%clk 0:00:54]}  Bxc8 {[%clk 0:00:34]} 30. Re1+ {[%clk 0:00:52]}  Kd8 {[%clk 0:00:33]} 31. Kg1 {[%clk 0:00:33]}  Rd2 {[%clk 0:00:32]} 32. b4 {[%clk 0:00:31]}  Rd3 {[%clk 0:00:27]} 33. Re3 {[%clk 0:00:31]}  Rxe3 {[%clk 0:00:26]} 34. fxe3 {[%clk 0:00:31]}  Bf5 {[%clk 0:00:24]} 35. Nf4 {[%clk 0:00:30]}  g6 {[%clk 0:00:15]} 36. Kf2 {[%clk 0:00:28]}  Kd7 {[%clk 0:00:13]} 37. Kf3 {[%clk 0:00:28]}  h4 {[%clk 0:00:11]} 38. e4 {[%clk 0:00:28]}  Be6 {[%clk 0:00:07]} 39. Nxg6 {[%clk 0:00:28]}  Kd6 {[%clk 0:00:07]} 40. Ke3 {[%clk 0:00:26]}  f5 {[%clk 0:00:05]} 41. Nxh4 {[%clk 0:00:26]}  fxe4 {[%clk 0:00:05]} 42. Kxe4 {[%clk 0:00:26]}  Bd5+ {[%clk 0:00:06]} 43. Kd4 {[%clk 0:00:26]}  Bc6 {[%clk 0:00:05]} 44. g4 {[%clk 0:00:26]}  a5 {[%clk 0:00:05]} 45. bxa5 {[%clk 0:00:24]}  Bd7 {[%clk 0:00:03]} 46. Nf5+ {[%clk 0:00:24]}  Kc6 {[%clk 0:00:02]} 47. h4 {[%clk 0:00:22]}  Kb7 {[%clk 0:00:02]} 48. h5 {[%clk 0:00:23]}  Be8 {[%clk 0:00:02]} 1-0


[Site "https://www.chess.com"]

[Event "Titled Tuesday Blitz October 25 Late 2022"]
[White "Hoffmann, Asa"]
[Black "Jimenez Almeida, Luis David"]
[WhiteFideId "2001470"]
[BlackFideId "22242244"]
[WhiteElo "2117"]
[BlackElo "2158"]
[Result "0-1"]
[Round "07"]
[TimeControl "180+1"]
[Date "2022.10.26"]
[WhiteClock "0:00:55"]
[BlackClock "0:01:12"]

1. d4 {[%clk 0:02:58]}  g6 {[%clk 0:02:58]} 2. e4 {[%clk 0:02:56]}  Bg7 {[%clk 0:02:58]} 3. Be3 {[%clk 0:02:56]}  d6 {[%clk 0:02:56]} 4. Qd2 {[%clk 0:02:56]}  Nd7 {[%clk 0:02:55]} 5. Nc3 {[%clk 0:02:55]}  a6 {[%clk 0:02:55]} 6. O-O-O {[%clk 0:02:55]}  b5 {[%clk 0:02:55]} 7. f3 {[%clk 0:02:52]}  Bb7 {[%clk 0:02:54]} 8. h4 {[%clk 0:02:52]}  h5 {[%clk 0:02:53]} 9. Nh3 {[%clk 0:02:51]}  Ngf6 {[%clk 0:02:52]} 10. Ng5 {[%clk 0:02:51]}  e6 {[%clk 0:02:44]} 11. Be2 {[%clk 0:02:46]}  Qe7 {[%clk 0:02:43]} 12. a3 {[%clk 0:02:45]}  Nb6 {[%clk 0:02:42]} 13. Kb1 {[%clk 0:02:43]}  Nfd7 {[%clk 0:02:42]} 14. g4 {[%clk 0:02:35]}  Nc4 {[%clk 0:02:37]} 15. Bxc4 {[%clk 0:02:34]}  bxc4 {[%clk 0:02:38]} 16. gxh5 {[%clk 0:02:27]}  Rxh5 {[%clk 0:02:38]} 17. d5 {[%clk 0:02:21]}  Nb6 {[%clk 0:02:23]} 18. dxe6 {[%clk 0:02:17]}  fxe6 {[%clk 0:02:24]} 19. Bxb6 {[%clk 0:02:15]}  cxb6 {[%clk 0:02:23]} 20. Qxd6 {[%clk 0:02:15]}  b5 {[%clk 0:02:04]} 21. Qxe6 {[%clk 0:01:59]}  Qxe6 {[%clk 0:01:57]} 22. Nxe6 {[%clk 0:01:59]}  Be5 {[%clk 0:01:58]} 23. Nd5 {[%clk 0:01:56]}  Bxd5 {[%clk 0:01:54]} 24. Rxd5 {[%clk 0:01:55]}  Ke7 {[%clk 0:01:54]} 25. Ng5 {[%clk 0:01:52]}  Bf4 {[%clk 0:01:51]} 26. Rhd1 {[%clk 0:01:46]}  Rxh4 {[%clk 0:01:48]} 27. Rd7+ {[%clk 0:01:43]}  Kf6 {[%clk 0:01:49]} 28. Nf7 {[%clk 0:01:41]}  Rh3 {[%clk 0:01:40]} 29. Nd6 {[%clk 0:01:34]}  Rxf3 {[%clk 0:01:30]} 30. Re1 {[%clk 0:01:24]}  Ke6 {[%clk 0:01:27]} 31. Rg7 {[%clk 0:01:14]}  Kxd6 {[%clk 0:01:25]} 32. Rxg6+ {[%clk 0:01:13]}  Ke5 {[%clk 0:01:25]} 33. a4 {[%clk 0:01:09]}  Re3 {[%clk 0:01:20]} 34. Rb6 {[%clk 0:01:04]}  Rxe1+ {[%clk 0:01:20]} 35. Ka2 {[%clk 0:01:04]}  Kxe4 {[%clk 0:01:17]} 36. c3 {[%clk 0:01:00]}  Be5 {[%clk 0:01:14]} 37. Ka3 {[%clk 0:00:59]}  Kd5 {[%clk 0:01:13]} 38. Kb4 {[%clk 0:00:56]}  Bd6+ {[%clk 0:01:13]} 39. Ka5 {[%clk 0:00:55]}  Bc7 {[%clk 0:01:12]} 0-1


[Site "https://www.chess.com"]

[Event "Titled Tuesday Blitz October 25 Late 2022"]
[White "Howell, David W L"]
[Black "Stoyanov, Tsvetan"]
[WhiteFideId "410608"]
[BlackFideId "2917173"]
[WhiteElo "2567"]
[BlackElo "2349"]
[Result "1-0"]
[Round "07"]
[TimeControl "180+1"]
[Date "2022.10.26"]
[WhiteClock "0:00:07"]
[BlackClock "0:00:03"]

1. e4 {[%clk 0:02:57]}  c5 {[%clk 0:02:58]} 2. c3 {[%clk 0:02:53]}  d5 {[%clk 0:02:56]} 3. exd5 {[%clk 0:02:54]}  Qxd5 {[%clk 0:02:57]} 4. d4 {[%clk 0:02:55]}  Nf6 {[%clk 0:02:57]} 5. Nf3 {[%clk 0:02:55]}  e6 {[%clk 0:02:56]} 6. a3 {[%clk 0:02:53]}  cxd4 {[%clk 0:02:52]} 7. cxd4 {[%clk 0:02:53]}  Nc6 {[%clk 0:02:53]} 8. Nc3 {[%clk 0:02:54]}  Qd8 {[%clk 0:02:53]} 9. Bd3 {[%clk 0:02:52]}  Be7 {[%clk 0:02:53]} 10. Be3 {[%clk 0:02:51]}  O-O {[%clk 0:02:52]} 11. Qc2 {[%clk 0:02:52]}  b6 {[%clk 0:02:34]} 12. Ne4 {[%clk 0:02:51]}  Bb7 {[%clk 0:02:19]} 13. Nxf6+ {[%clk 0:02:51]}  Bxf6 {[%clk 0:02:20]} 14. Bxh7+ {[%clk 0:02:51]}  Kh8 {[%clk 0:02:21]} 15. Be4 {[%clk 0:02:50]}  Rc8 {[%clk 0:02:15]} 16. Qe2 {[%clk 0:02:50]}  Kg8 {[%clk 0:02:04]} 17. O-O {[%clk 0:02:47]}  Na5 {[%clk 0:02:01]} 18. Bxb7 {[%clk 0:02:46]}  Nxb7 {[%clk 0:02:01]} 19. Rac1 {[%clk 0:02:34]}  Qd5 {[%clk 0:02:00]} 20. Qa6 {[%clk 0:02:34]}  Rxc1 {[%clk 0:01:07]} 21. Rxc1 {[%clk 0:02:35]}  Na5 {[%clk 0:01:07]} 22. Qxa7 {[%clk 0:02:19]}  Nc4 {[%clk 0:01:04]} 23. Qa4 {[%clk 0:01:55]}  b5 {[%clk 0:00:45]} 24. Qb4 {[%clk 0:01:56]}  g5 {[%clk 0:00:36]} 25. h3 {[%clk 0:01:50]}  Ra8 {[%clk 0:00:25]} 26. Qc3 {[%clk 0:01:25]}  Kg7 {[%clk 0:00:24]} 27. Nd2 {[%clk 0:01:21]}  Nd6 {[%clk 0:00:21]} 28. Qb3 {[%clk 0:01:07]}  Qb7 {[%clk 0:00:11]} 29. Rc5 {[%clk 0:01:04]}  Nf5 {[%clk 0:00:12]} 30. Qxb5 {[%clk 0:00:58]}  Qe7 {[%clk 0:00:11]} 31. Nf3 {[%clk 0:00:55]}  Rd8 {[%clk 0:00:10]} 32. Rxf5 {[%clk 0:00:49]}  exf5 {[%clk 0:00:10]} 33. Qxf5 {[%clk 0:00:49]}  Qe6 {[%clk 0:00:09]} 34. Qxe6 {[%clk 0:00:17]}  fxe6 {[%clk 0:00:10]} 35. Nxg5 {[%clk 0:00:18]}  Bxg5 {[%clk 0:00:11]} 36. Bxg5 {[%clk 0:00:19]}  Rxd4 {[%clk 0:00:11]} 37. g4 {[%clk 0:00:20]}  Rd3 {[%clk 0:00:09]} 38. Kg2 {[%clk 0:00:13]}  Kg6 {[%clk 0:00:09]} 39. Bf4 {[%clk 0:00:09]}  Rb3 {[%clk 0:00:09]} 40. Be5 {[%clk 0:00:10]}  Kg5 {[%clk 0:00:06]} 41. Bc3 {[%clk 0:00:09]}  Kf4 {[%clk 0:00:05]} 42. a4 {[%clk 0:00:08]}  e5 {[%clk 0:00:05]} 43. a5 {[%clk 0:00:09]}  e4 {[%clk 0:00:05]} 44. a6 {[%clk 0:00:07]}  Rb6 {[%clk 0:00:04]} 45. a7 {[%clk 0:00:06]}  Ra6 {[%clk 0:00:05]} 46. Bd4 {[%clk 0:00:07]}  Ra4 {[%clk 0:00:03]} 47. b4 {[%clk 0:00:05]}  Ra2 {[%clk 0:00:03]} 48. b5 {[%clk 0:00:06]}  e3 {[%clk 0:00:03]} 49. Bxe3+ {[%clk 0:00:06]}  Ke4 {[%clk 0:00:03]} 50. b6 {[%clk 0:00:07]} 1-0


[Site "https://www.chess.com"]

[Event "Titled Tuesday Blitz October 25 Late 2022"]
[White "Ibadov, Dashgyn"]
[Black "Haszon, David"]
[WhiteFideId "24107514"]
[BlackFideId "733610"]
[WhiteElo "2208"]
[BlackElo "2211"]
[Result "0-1"]
[Round "07"]
[TimeControl "180+1"]
[Date "2022.10.26"]
[WhiteClock "0:00:03"]
[BlackClock "0:00:13"]

1. e4 {[%clk 0:03:00]}  c5 {[%clk 0:03:00]} 2. Nf3 {[%clk 0:03:00]}  d6 {[%clk 0:03:00]} 3. d4 {[%clk 0:03:00]}  cxd4 {[%clk 0:03:01]} 4. Nxd4 {[%clk 0:03:01]}  Nf6 {[%clk 0:03:01]} 5. Nc3 {[%clk 0:03:02]}  a6 {[%clk 0:03:02]} 6. Bg5 {[%clk 0:03:02]}  Nbd7 {[%clk 0:03:02]} 7. f4 {[%clk 0:03:01]}  e6 {[%clk 0:02:58]} 8. Qf3 {[%clk 0:03:00]}  Qc7 {[%clk 0:02:55]} 9. O-O-O {[%clk 0:03:00]}  b5 {[%clk 0:02:53]} 10. Bd3 {[%clk 0:02:56]}  b4 {[%clk 0:02:46]} 11. Nce2 {[%clk 0:02:54]}  Bb7 {[%clk 0:02:44]} 12. Qh3 {[%clk 0:02:53]}  Nc5 {[%clk 0:02:38]} 13. Bxf6 {[%clk 0:02:50]}  gxf6 {[%clk 0:02:39]} 14. Qh5 {[%clk 0:02:34]}  O-O-O {[%clk 0:02:33]} 15. Ng3 {[%clk 0:02:29]}  Kb8 {[%clk 0:02:25]} 16. Kb1 {[%clk 0:02:28]}  d5 {[%clk 0:02:13]} 17. e5 {[%clk 0:02:06]}  f5 {[%clk 0:01:45]} 18. Qe2 {[%clk 0:02:00]}  Qb6 {[%clk 0:01:27]} 19. Nb3 {[%clk 0:01:43]}  a5 {[%clk 0:01:26]} 20. Nxc5 {[%clk 0:01:39]}  Bxc5 {[%clk 0:01:26]} 21. Nh5 {[%clk 0:01:18]}  a4 {[%clk 0:01:23]} 22. Nf6 {[%clk 0:01:18]}  Ka7 {[%clk 0:01:17]} 23. Bb5 {[%clk 0:01:08]}  a3 {[%clk 0:01:04]} 24. Nd7 {[%clk 0:01:08]}  Rxd7 {[%clk 0:00:58]} 25. Bxd7 {[%clk 0:01:08]}  Ba6 {[%clk 0:00:58]} 26. Qf3 {[%clk 0:01:07]}  axb2 {[%clk 0:00:57]} 27. Ba4 {[%clk 0:01:05]}  Bd4 {[%clk 0:00:50]} 28. Bb3 {[%clk 0:01:03]}  Rc8 {[%clk 0:00:47]} 29. g4 {[%clk 0:01:03]}  Rc3 {[%clk 0:00:42]} 30. Qg2 {[%clk 0:01:03]}  fxg4 {[%clk 0:00:34]} 31. Qxg4 {[%clk 0:01:04]}  Bc4 {[%clk 0:00:19]} 32. Qh5 {[%clk 0:01:00]}  Qc7 {[%clk 0:00:18]} 33. Qxh7 {[%clk 0:00:57]}  Bxb3 {[%clk 0:00:18]} 34. cxb3 {[%clk 0:00:46]}  Be3 {[%clk 0:00:16]} 35. Kxb2 {[%clk 0:00:43]}  Bxf4 {[%clk 0:00:15]} 36. Rhf1 {[%clk 0:00:34]}  Bxe5 {[%clk 0:00:15]} 37. Kb1 {[%clk 0:00:30]}  f6 {[%clk 0:00:15]} 38. Qxc7+ {[%clk 0:00:20]}  Rxc7 {[%clk 0:00:16]} 39. h4 {[%clk 0:00:20]}  Rh7 {[%clk 0:00:16]} 40. Rh1 {[%clk 0:00:19]}  Rh5 {[%clk 0:00:15]} 41. Kc2 {[%clk 0:00:18]}  Kb6 {[%clk 0:00:16]} 42. Kd3 {[%clk 0:00:18]}  Kc5 {[%clk 0:00:16]} 43. Rc1+ {[%clk 0:00:14]}  Bc3 {[%clk 0:00:17]} 44. Rcf1 {[%clk 0:00:11]}  f5 {[%clk 0:00:16]} 45. Rfg1 {[%clk 0:00:11]}  e5 {[%clk 0:00:17]} 46. Rg5 {[%clk 0:00:11]}  e4+ {[%clk 0:00:17]} 47. Ke2 {[%clk 0:00:11]}  Rh8 {[%clk 0:00:16]} 48. Rxf5 {[%clk 0:00:11]}  Ra8 {[%clk 0:00:15]} 49. h5 {[%clk 0:00:10]}  Rxa2+ {[%clk 0:00:16]} 50. Ke3 {[%clk 0:00:10]}  Bd4+ {[%clk 0:00:16]} 51. Kf4 {[%clk 0:00:11]}  Rf2+ {[%clk 0:00:16]} 52. Kg5 {[%clk 0:00:11]}  Rg2+ {[%clk 0:00:17]} 53. Kh4 {[%clk 0:00:09]}  e3 {[%clk 0:00:17]} 54. h6 {[%clk 0:00:08]}  e2 {[%clk 0:00:17]} 55. h7 {[%clk 0:00:08]}  Bc3 {[%clk 0:00:16]} 56. h8=Q {[%clk 0:00:07]}  Bxh8 {[%clk 0:00:16]} 57. Kh3 {[%clk 0:00:08]}  Rg8 {[%clk 0:00:15]} 58. Re1 {[%clk 0:00:08]}  Re8 {[%clk 0:00:14]} 59. Rf2 {[%clk 0:00:08]}  Bc3 {[%clk 0:00:13]} 60. Rexe2 {[%clk 0:00:08]}  Rg8 {[%clk 0:00:13]} 61. Rg2 {[%clk 0:00:08]}  Rf8 {[%clk 0:00:13]} 62. Kg4 {[%clk 0:00:08]}  d4 {[%clk 0:00:13]} 63. Re5+ {[%clk 0:00:07]}  Kd6 {[%clk 0:00:13]} 64. Rh5 {[%clk 0:00:05]}  d3 {[%clk 0:00:13]} 65. Rh6+ {[%clk 0:00:03]}  Kd5 {[%clk 0:00:13]} 66. Rh5+ {[%clk 0:00:03]}  Kd4 {[%clk 0:00:13]} 67. Rh7 {[%clk 0:00:02]}  Rg8+ {[%clk 0:00:11]} 68. Kf3 {[%clk 0:00:03]}  Rxg2 {[%clk 0:00:12]} 69. Kxg2 {[%clk 0:00:04]}  d2 {[%clk 0:00:13]} 70. Rd7+ {[%clk 0:00:04]}  Ke3 {[%clk 0:00:13]} 71. Kf1 {[%clk 0:00:04]}  Bd4 {[%clk 0:00:13]} 72. Re7+ {[%clk 0:00:03]}  Kd3 {[%clk 0:00:13]} 0-1


[Site "https://www.chess.com"]

[Event "Titled Tuesday Blitz October 25 Late 2022"]
[White "Iliaguev, Nisim"]
[Black "Yeletsky, Ivan"]
[WhiteFideId "2817276"]
[BlackFideId "24180327"]
[WhiteElo "2264"]
[BlackElo "2391"]
[Result "1-0"]
[Round "07"]
[TimeControl "180+1"]
[Date "2022.10.26"]
[WhiteClock "0:00:15"]
[BlackClock "0:00:01"]

1. d4 {[%clk 0:03:00]}  Nf6 {[%clk 0:02:48]} 2. Nf3 {[%clk 0:03:00]}  b6 {[%clk 0:02:47]} 3. g3 {[%clk 0:03:00]}  Bb7 {[%clk 0:02:46]} 4. Bg2 {[%clk 0:03:01]}  c5 {[%clk 0:02:47]} 5. O-O {[%clk 0:03:01]}  cxd4 {[%clk 0:02:47]} 6. Qxd4 {[%clk 0:03:01]}  g6 {[%clk 0:02:46]} 7. h4 {[%clk 0:02:59]}  Bg7 {[%clk 0:02:46]} 8. c4 {[%clk 0:02:59]}  O-O {[%clk 0:02:46]} 9. Nc3 {[%clk 0:02:59]}  Ne4 {[%clk 0:02:45]} 10. Qd3 {[%clk 0:02:56]}  Nxc3 {[%clk 0:02:45]} 11. bxc3 {[%clk 0:02:57]}  Na6 {[%clk 0:02:45]} 12. Be3 {[%clk 0:02:55]}  h5 {[%clk 0:02:35]} 13. Bd4 {[%clk 0:02:51]}  d6 {[%clk 0:02:33]} 14. Bxg7 {[%clk 0:02:51]}  Kxg7 {[%clk 0:02:34]} 15. Qd4+ {[%clk 0:02:48]}  Kg8 {[%clk 0:02:34]} 16. a4 {[%clk 0:02:46]}  Nc5 {[%clk 0:02:32]} 17. Rfb1 {[%clk 0:02:43]}  Rc8 {[%clk 0:02:26]} 18. Nd2 {[%clk 0:02:32]}  Bxg2 {[%clk 0:02:25]} 19. Kxg2 {[%clk 0:02:33]}  Qc7 {[%clk 0:02:14]} 20. Rb5 {[%clk 0:02:29]}  Qb7+ {[%clk 0:01:52]} 21. Kg1 {[%clk 0:02:26]}  Qd7 {[%clk 0:01:47]} 22. a5 {[%clk 0:02:18]}  bxa5 {[%clk 0:01:48]} 23. Raxa5 {[%clk 0:02:12]}  a6 {[%clk 0:01:48]} 24. Rxc5 {[%clk 0:01:58]}  Rb8 {[%clk 0:01:40]} 25. Rd5 {[%clk 0:01:54]}  Rb2 {[%clk 0:01:32]} 26. Rxh5 {[%clk 0:01:41]}  f6 {[%clk 0:01:16]} 27. Rhd5 {[%clk 0:01:38]}  Qh3 {[%clk 0:01:13]} 28. Ra1 {[%clk 0:01:30]}  Rfb8 {[%clk 0:01:12]} 29. Qe4 {[%clk 0:01:23]}  Kf7 {[%clk 0:01:11]} 30. Qg2 {[%clk 0:01:16]}  Qg4 {[%clk 0:01:09]} 31. Qf3 {[%clk 0:01:09]}  Qh3 {[%clk 0:01:08]} 32. Rd4 {[%clk 0:01:04]}  a5 {[%clk 0:01:03]} 33. Qg2 {[%clk 0:01:00]}  Qe6 {[%clk 0:01:03]} 34. Qd5 {[%clk 0:01:00]}  Rc2 {[%clk 0:00:56]} 35. Qxe6+ {[%clk 0:00:59]}  Kxe6 {[%clk 0:00:57]} 36. Rd3 {[%clk 0:00:55]}  Kf7 {[%clk 0:00:49]} 37. Rxa5 {[%clk 0:00:50]}  Rbb2 {[%clk 0:00:49]} 38. Rad5 {[%clk 0:00:50]}  Rc1+ {[%clk 0:00:31]} 39. Kg2 {[%clk 0:00:50]}  Rcc2 {[%clk 0:00:32]} 40. h5 {[%clk 0:00:47]}  gxh5 {[%clk 0:00:30]} 41. Kf3 {[%clk 0:00:34]}  Kg6 {[%clk 0:00:29]} 42. Ke3 {[%clk 0:00:33]}  Ra2 {[%clk 0:00:09]} 43. c5 {[%clk 0:00:33]}  dxc5 {[%clk 0:00:10]} 44. Rxc5 {[%clk 0:00:34]}  e5 {[%clk 0:00:08]} 45. Rc6 {[%clk 0:00:31]}  Kg5 {[%clk 0:00:06]} 46. Rdd6 {[%clk 0:00:28]}  Kg4 {[%clk 0:00:03]} 47. Rc4+ {[%clk 0:00:23]}  Kh3 {[%clk 0:00:03]} 48. Rc8 {[%clk 0:00:16]}  f5 {[%clk 0:00:03]} 49. Rd5 {[%clk 0:00:16]}  f4+ {[%clk 0:00:02]} 50. gxf4 {[%clk 0:00:14]}  exf4+ {[%clk 0:00:02]} 51. Kxf4 {[%clk 0:00:14]}  Kg2 {[%clk 0:00:03]} 52. Rd4 {[%clk 0:00:15]}  Kxf2 {[%clk 0:00:03]} 53. Ne4+ {[%clk 0:00:15]}  Kxe2 {[%clk 0:00:03]} 54. Ng3+ {[%clk 0:00:14]}  Kf2 {[%clk 0:00:03]} 55. Nxh5 {[%clk 0:00:14]}  Ra5 {[%clk 0:00:02]} 56. Nf6 {[%clk 0:00:14]}  Ra7 {[%clk 0:00:02]} 57. Ne4+ {[%clk 0:00:14]}  Ke2 {[%clk 0:00:01]} 58. Re8 {[%clk 0:00:14]}  Rf7+ {[%clk 0:00:02]} 59. Ke5 {[%clk 0:00:15]}  Ke3 {[%clk 0:00:02]} 60. c4 {[%clk 0:00:14]}  Rf1 {[%clk 0:00:02]} 61. Kd5 {[%clk 0:00:14]}  Kf4 {[%clk 0:00:02]} 62. Rf8+ {[%clk 0:00:14]}  Ke3 {[%clk 0:00:02]} 63. Rxf1 {[%clk 0:00:15]}  Rh2 {[%clk 0:00:02]} 64. Re1+ {[%clk 0:00:15]}  Kf4 {[%clk 0:00:02]} 65. Nd2+ {[%clk 0:00:14]}  Kf5 {[%clk 0:00:02]} 66. Re5+ {[%clk 0:00:15]}  Kf6 {[%clk 0:00:02]} 67. Ne4+ {[%clk 0:00:16]}  Kf7 {[%clk 0:00:03]} 68. c5 {[%clk 0:00:17]}  Ra2 {[%clk 0:00:02]} 69. c6 {[%clk 0:00:17]}  Ra5+ {[%clk 0:00:02]} 70. Nc5 {[%clk 0:00:18]}  Ra8 {[%clk 0:00:03]} 71. c7 {[%clk 0:00:17]}  Rd8+ {[%clk 0:00:01]} 72. cxd8=Q {[%clk 0:00:15]} 1-0


[Site "https://www.chess.com"]